bitfinex/quotes_BTCUSD_20240911
["timestamp","ask_amount","ask_price","bid_price","bid_amount"]
[1726018901972,0.349671,57197.0,57178.0,0.349784]
[1726018901973,0.174842,57195.0,57190.0,0.174853]
[1726018902165,0.0767,57197.0,57192.0,0.174847]
[1726018902384,0.001,57193.0,57186.0,0.42722033]
[1726018902631,0.001,57193.0,57192.0,0.524548]
[1726018903079,0.0658,57204.0,57198.0,0.174828]
[1726018903297,0.0782,57207.0,57200.0,0.174823]
[1726018903298,0.174808,57206.0,57200.0,0.174823]
[1726018903493,0.174808,57206.0,57201.0,0.023]
[1726018903711,0.0658,57210.0,57201.0,0.19894018]
[1726018903929,0.0782,57211.0,57201.0,0.70798713]
[1726018904144,0.174797,57209.0,57205.0,0.174808]
[1726018904385,0.144,57215.0,57206.0,0.023]
[1726018904386,0.14648433,57215.0,57206.0,0.023]
[1726018904608,0.174797,57209.0,57206.0,0.023]
[1726018904826,0.14648433,57215.0,57205.0,0.023]
[1726018905038,0.144,57215.0,57206.0,0.0197811]
[1726018905257,0.00248433,57214.0,57207.0,0.023]
[1726018905472,0.174798,57209.0,57207.0,0.023]
[1726018905693,0.427743,57218.0,57207.0,0.17594018]
[1726018905976,0.174768,57219.0,57209.0,0.0654]
[1726018906181,0.0039496,57220.0,57214.0,0.174782]
[1726018906429,0.174771,57218.0,57215.0,0.023]
[1726018906653,0.0039496,57220.0,57215.0,0.023]
[1726018906856,0.174776,57216.0,57212.0,0.174787]
[1726018907075,0.53177478,57220.0,57213.0,0.023]
[1726018907291,0.001,57218.0,57211.0,0.023]
[1726018907528,0.001,57218.0,57212.0,0.00859784]
[1726018907767,0.001,57218.0,57208.0,0.349596]
[1726018907768,0.349549,57217.0,57213.0,0.023]
[1726018907969,0.174782,57214.0,57213.0,0.03159784]
[1726018908179,0.87391,57214.0,57213.0,0.023]
[1726018908675,0.87391,57214.0,57198.0,0.415056]
[1726018908676,0.0782,57214.0,57198.0,0.0654]
[1726018908884,0.00248433,57213.0,57199.0,0.00859784]
[1726018909119,0.174812,57205.0,57200.0,0.174823]
[1726018909354,0.144,57214.0,57198.0,0.35076918]
[1726018909355,0.174815,57204.0,57198.0,0.35076918]
[1726018909580,0.174816,57203.0,57201.0,0.00859784]
[1726018909861,0.174811,57205.0,57198.0,0.17594018]
[1726018910069,0.449499,57225.0,57202.0,0.17594018]
[1726018910070,0.014,57213.0,57202.0,0.17594018]
[1726018910287,0.17479,57212.0,57207.0,0.174801]
[1726018910520,0.014,57213.0,57202.0,0.17594018]
[1726018910734,0.004,57204.0,57203.0,0.58746]
[1726018910990,0.004,57204.0,57203.0,1.56156418]
[1726018911212,0.004,57204.0,57203.0,1.27383623]
[1726018911442,0.014,57213.0,57206.0,0.174805]
[1726018911443,0.174794,57210.0,57206.0,0.174805]
[1726018911675,0.014,57213.0,57207.0,0.03157628]
[1726018911905,0.014,57213.0,57212.0,0.524365]
[1726018912126,0.1787146,57220.0,57215.0,0.174779]
[1726018912346,0.1787146,57220.0,57213.0,0.349568]
[1726018912347,0.0039496,57220.0,57212.0,0.00857628]
[1726018912568,0.0039496,57220.0,57217.0,0.349544]
[1726018912780,0.0039496,57220.0,57219.0,0.174767]
[1726018912994,0.0039496,57220.0,57219.0,0.547301]
[1726018913205,0.0039496,57220.0,57219.0,0.90532002]
[1726018913667,0.0149496,57220.0,57219.0,0.20625202]
[1726018914083,0.0109496,57220.0,57219.0,0.26183162]
[1726018914306,0.0109496,57220.0,57219.0,0.26783162]
[1726018914519,0.0109496,57220.0,57219.0,0.96689962]
[1726018914752,0.0039496,57220.0,57219.0,1.2082398]
[1726018914988,0.0039496,57220.0,57219.0,2.05789413]
[1726018915208,0.0039496,57220.0,57219.0,2.15789413]
[1726018915438,0.0039496,57220.0,57219.0,2.15289413]
[1726018915656,0.0039496,57220.0,57219.0,2.15789413]
[1726018916154,0.0039496,57220.0,57219.0,1.3891398]
[1726018916393,0.0039496,57220.0,57219.0,1.3132398]
[1726018917777,0.0039496,57220.0,57219.0,2.08199413]
[1726018918001,0.0039496,57220.0,57219.0,1.3132398]
[1726018918628,0.0039496,57220.0,57219.0,1.6627738]
[1726018919290,0.0039496,57220.0,57219.0,1.3132398]
[1726018919512,0.0039496,57220.0,57219.0,1.6627738]
[1726018919931,0.0039496,57220.0,57219.0,2.0123078]
[1726018920149,0.0039496,57220.0,57219.0,1.6627738]
[1726018922413,0.0039496,57220.0,57219.0,2.1802078]
[1726018923050,0.0039496,57220.0,57219.0,2.5297418]
[1726018923253,0.0021867,57224.0,57223.0,0.632163]
[1726018923468,0.0021867,57224.0,57223.0,1.6580752]
[1726018923678,0.0021867,57224.0,57223.0,2.36519774]
[1726018923889,0.0021867,57224.0,57223.0,2.42519774]
[1726018924122,0.0001,57239.0,57238.0,0.03]
[1726018924388,0.52782518,57246.0,57245.0,0.526062]
[1726018924614,0.0021867,57247.0,57245.0,0.526062]
[1726018924615,0.0021867,57247.0,57246.0,1.36767484]
[1726018924894,0.0021867,57247.0,57246.0,1.89498402]
[1726018925122,0.0001069,57250.0,57248.0,0.616035]
[1726018925351,0.175406,57278.0,57248.0,0.616035]
[1726018925352,0.000818,57278.0,57269.0,0.09]
[1726018925578,0.000818,57278.0,57262.0,0.490571]
[1726018925579,0.0012386,57278.0,57277.0,1.61638284]
[1726018925772,0.0012386,57278.0,57277.0,1.46343]
[1726018925991,0.0012386,57278.0,57277.0,1.04615882]
[1726018926258,0.0012386,57278.0,57277.0,1.78434042]
[1726018926459,0.0012386,57278.0,57277.0,0.5283147]
[1726018926673,0.000818,57278.0,57277.0,0.00780882]
[1726018926916,0.0012386,57278.0,57277.0,0.013]
[1726018927377,0.0012386,57278.0,57277.0,0.023]
[1726018927601,0.0012386,57278.0,57271.0,0.349211]
[1726018927602,0.21120371,57278.0,57265.0,0.25238572]
[1726018927828,0.174615,57269.0,57265.0,0.02523857]
[1726018928066,0.0782,57273.0,57265.0,0.02523857]
[1726018928273,0.174614,57269.0,57265.0,0.02523857]
[1726018928490,0.0782,57273.0,57266.0,0.04522583]
[1726018928736,0.174615,57269.0,57266.0,0.04522583]
[1726018928989,0.0786206,57273.0,57266.0,0.04522583]
[1726018929215,0.349217,57271.0,57266.0,0.04522583]
[1726018929460,0.0786206,57273.0,57253.0,0.25238572]
[1726018929461,0.174643,57260.0,57253.0,0.25238572]
[1726018929690,0.0658,57274.0,57246.0,0.17616955]
[1726018929691,0.0782,57269.0,57261.0,0.174637]
[1726018929933,0.0782,57269.0,57263.0,0.25238572]
[1726018929934,0.0004206,57266.0,57263.0,0.25238572]
[1726018930132,0.1750456,57266.0,57263.0,0.25238572]
[1726018930360,0.0004206,57266.0,57263.0,0.25238572]
[1726018930783,0.00290493,57266.0,57263.0,0.25238572]
[1726018930997,0.174626,57265.0,57264.0,0.023]
[1726018931607,0.523879,57265.0,57264.0,0.023]
[1726018931817,0.523906,57262.0,57261.0,0.001]
[1726018932040,0.174635,57262.0,57261.0,0.001]
[1726018932256,0.0044206,57266.0,57261.0,0.001]
[1726018932257,0.0044206,57266.0,57265.0,0.174626]
[1726018932492,0.0044206,57266.0,57265.0,0.197626]
[1726018932688,0.0044206,57266.0,57265.0,0.72281918]
[1726018932921,0.0004206,57266.0,57265.0,0.85780033]
[1726018933164,0.0004206,57266.0,57265.0,0.50854733]
[1726018933373,0.0004206,57266.0,57265.0,1.20705333]
[1726018933579,0.0004206,57266.0,57265.0,0.50854733]
[1726018933810,0.0004206,57266.0,57265.0,0.95780033]
[1726018934050,0.000818,57278.0,57275.0,0.25238572]
[1726018934273,0.000818,57278.0,57276.0,0.04823857]
[1726018934933,0.000818,57278.0,57277.0,0.17459]
[1726018935166,0.000818,57278.0,57277.0,0.72271018]
[1726018935599,0.001818,57278.0,57277.0,0.54677]
[1726018935810,0.001818,57278.0,57277.0,0.66502883]
[1726018936021,0.001818,57278.0,57277.0,0.84096901]
[1726018936509,0.001818,57278.0,57277.0,0.85096901]
[1726018936752,0.001818,57278.0,57277.0,0.15125883]
[1726018937198,0.001818,57278.0,57277.0,0.20759]
[1726018937407,0.001818,57278.0,57277.0,1.08189018]
[1726018937632,0.002818,57278.0,57277.0,1.44007018]
[1726018937872,0.002818,57278.0,57277.0,1.54007018]
[1726018938084,0.002818,57278.0,57277.0,1.01787973]
[1726018938323,0.000818,57278.0,57277.0,0.29916955]
[1726018938552,0.000818,57278.0,57277.0,0.65577]
[1726018938553,0.001818,57278.0,57277.0,0.65577]
[1726018938772,0.001818,57278.0,57277.0,0.66577]
[1726018939051,0.000818,57278.0,57277.0,1.59347018]
[1726018939293,0.53030951,57291.0,57277.0,0.80389545]
[1726018939521,0.174554,57289.0,57285.0,0.174565]
[1726018939747,0.0787,57287.0,57278.0,0.25238572]
[1726018939964,0.00248433,57286.0,57283.0,0.25238572]
[1726018940175,0.174568,57284.0,57283.0,0.25238572]
[1726018940679,0.0787,57287.0,57283.0,0.25238572]
[1726018940889,0.06223,57292.0,57286.0,0.17456]
[1726018941117,0.174553,57289.0,57288.0,0.25238572]
[1726018941333,0.349096,57291.0,57284.0,0.04823857]
[1726018941578,0.174551,57290.0,57285.0,0.174565]
[1726018941796,0.349096,57291.0,57286.0,0.023]
[1726018941991,0.06223,57292.0,57287.0,0.03236243]
[1726018942209,0.349102,57290.0,57287.0,0.03236243]
[1726018942421,0.174553,57289.0,57288.0,0.023]
[1726018942639,0.174553,57289.0,57283.0,0.25238572]
[1726018942640,0.06623,57292.0,57283.0,0.25238572]
[1726018942878,0.001,57290.0,57284.0,0.023]
[1726018943086,0.174558,57288.0,57284.0,0.023]
[1726018943308,0.12798552,57288.0,57283.0,0.25238572]
[1726018943529,0.523669,57288.0,57287.0,0.002]
[1726018943973,1.221895,57288.0,57287.0,0.002]
[1726018944235,1.86956498,57288.0,57287.0,0.002]
[1726018944699,0.489913,57288.0,57282.0,0.25240536]
[1726018944924,0.34912,57287.0,57283.0,0.02524054]
[1726018945133,0.174565,57285.0,57284.0,0.003]
[1726018945352,0.174565,57285.0,57284.0,0.004]
[1726018945579,0.87531133,57285.0,57284.0,0.001]
[1726018945814,0.174581,57280.0,57277.0,0.25240536]
[1726018946026,0.174581,57280.0,57278.0,0.023]
[1726018946241,0.1498,57288.0,57278.0,0.07991884]
[1726018946478,1.023582,57288.0,57287.0,0.001]
[1726018946759,0.674469,57288.0,57287.0,0.001]
[1726018946962,1.014582,57288.0,57287.0,0.001]
[1726018947394,0.665469,57288.0,57287.0,0.001]
[1726018947619,1.014582,57288.0,57287.0,0.001]
[1726018947847,1.014582,57288.0,57282.0,0.023]
[1726018947848,0.489913,57288.0,57282.0,0.023]
[1726018948101,0.174571,57283.0,57282.0,0.023]
[1726018948328,0.523714,57283.0,57282.0,0.023]
[1726018948772,0.1408,57288.0,57277.0,0.023]
[1726018948988,0.174623,57267.0,57265.0,0.25240536]
[1726018949203,0.00248433,57270.0,57265.0,0.25240536]
[1726018949444,0.174632,57264.0,57260.0,0.25240536]
[1726018949676,0.174632,57264.0,57249.0,0.01361563]
[1726018949677,0.25551933,57263.0,57255.0,0.25240536]
[1726018949889,0.00248433,57262.0,57261.0,0.174638]
[1726018950099,0.00248433,57262.0,57252.0,0.0795]
[1726018950100,0.174638,57261.0,57243.0,0.06860093]
[1726018950328,0.174651,57257.0,57256.0,0.25240536]
[1726018950546,0.174666,57252.0,57251.0,0.25240536]
[1726018950803,0.174666,57253.0,57251.0,0.25240536]
[1726018951024,0.0784,57264.0,57252.0,0.77767554]
[1726018951243,0.174641,57261.0,57259.0,0.25240536]
[1726018951466,0.349269,57263.0,57259.0,0.25240536]
[1726018951673,0.349269,57263.0,57254.0,0.25240536]
[1726018951890,0.0784,57264.0,57255.0,0.02776459]
[1726018952165,0.174639,57261.0,57259.0,0.25240536]
[1726018952371,0.174639,57261.0,57255.0,0.02776459]
[1726018952372,0.427662,57264.0,57255.0,0.37707759]
[1726018952580,0.349266,57263.0,57259.0,0.004]
[1726018952802,0.174641,57260.0,57259.0,0.004]
[1726018953041,0.0784,57271.0,57259.0,0.27940536]
[1726018953277,0.0784,57271.0,57266.0,0.42702736]
[1726018953544,0.0784,57271.0,57267.0,0.023]
[1726018953772,0.174617,57268.0,57267.0,0.023]
[1726018954003,0.427617,57271.0,57267.0,0.06800364]
[1726018954230,0.252996,57275.0,57270.0,0.17461]
[1726018954459,0.0784,57275.0,57271.0,0.023]
[1726018954908,0.0784,57275.0,57270.0,0.023]
[1726018954909,0.007,57271.0,57270.0,0.023]
[1726018955132,0.007,57271.0,57270.0,0.523833]
[1726018955340,0.0784,57275.0,57270.0,0.197611]
[1726018955341,0.174599,57274.0,57270.0,0.197611]
[1726018955562,0.004,57275.0,57271.0,0.41069876]
[1726018955788,0.005,57275.0,57274.0,0.174599]
[1726018956034,0.001,57275.0,57274.0,0.546797]
[1726018956267,0.000817,57278.0,57277.0,0.17459]
[1726018956503,0.000817,57278.0,57277.0,0.54677]
[1726018956714,0.000817,57278.0,57277.0,0.89595]
[1726018957149,0.000817,57278.0,57277.0,0.96135]
[1726018957434,0.000817,57278.0,57277.0,1.49443741]
[1726018957648,0.000817,57278.0,57277.0,1.84361741]
[1726018957869,0.000817,57278.0,57277.0,1.59443741]
[1726018958567,0.001817,57278.0,57277.0,2.03711741]
[1726018958820,0.00013,57292.0,57288.0,0.174553]
[1726018959042,0.174675,57292.0,57289.0,0.023]
[1726018959301,0.00013,57292.0,57289.0,0.023]
[1726018959545,0.174676,57292.0,57286.0,0.123]
[1726018959756,0.00013,57292.0,57287.0,0.047213]
[1726018960048,0.0784,57288.0,57278.0,0.17616955]
[1726018960260,0.0784,57288.0,57281.0,0.174577]
[1726018960261,0.174567,57285.0,57281.0,0.174577]
[1726018960469,0.065,57287.0,57279.0,0.274582]
[1726018960693,0.065,57287.0,57280.0,0.238356]
[1726018960694,0.174568,57285.0,57280.0,0.238356]
[1726018960924,0.065,57287.0,57282.0,0.349148]
[1726018961133,0.065,57287.0,57281.0,0.1]
[1726018961134,0.065,57287.0,57281.0,0.349154]
[1726018961357,0.174566,57285.0,57280.0,0.063776]
[1726018961578,0.174566,57285.0,57281.0,0.0163776]
[1726018961801,0.00248433,57284.0,57282.0,0.023]
[1726018962022,0.0784,57288.0,57282.0,0.023]
[1726018962241,0.349105,57290.0,57282.0,0.023]
[1726018962242,0.174551,57290.0,57286.0,0.174561]
[1726018962478,0.352119,57287.0,57286.0,0.0197561]
[1726018962709,0.352119,57287.0,57282.0,0.023]
[1726018962710,0.174567,57285.0,57282.0,0.023]
[1726018962937,0.003,57287.0,57282.0,0.372148]
[1726018963161,0.003,57287.0,57283.0,0.34914]
[1726018963399,0.003,57287.0,57286.0,0.174562]
[1726018963616,0.003,57287.0,57284.0,0.06822936]
[1726018963870,0.003,57287.0,57286.0,0.174562]
[1726018964737,0.44560246,57292.0,57284.0,0.06822936]
[1726018964738,0.27105846,57292.0,57284.0,0.06822936]
[1726018964964,0.174565,57285.0,57284.0,0.06822936]
[1726018965206,0.003,57287.0,57284.0,0.06822936]
[1726018965424,0.003,57287.0,57286.0,0.174562]
[1726018965644,0.003,57287.0,57286.0,0.523687]
[1726018965850,0.003,57287.0,57286.0,0.79909236]
[1726018966057,0.00013,57292.0,57287.0,0.349117]
[1726018966272,0.00013,57292.0,57291.0,0.42695236]
[1726018966501,0.00013,57292.0,57291.0,0.79904636]
[1726018966712,0.00013,57292.0,57291.0,0.27540536]
[1726018966920,0.00013,57292.0,57291.0,0.023]
[1726018967631,0.00013,57292.0,57289.0,0.023]
[1726018967873,0.00013,57292.0,57291.0,0.174547]
[1726018968082,0.00013,57292.0,57291.0,0.197547]
[1726018968285,0.00013,57292.0,57291.0,0.546641]
[1726018969108,0.00813,57292.0,57291.0,0.546641]
[1726018969516,0.00013,57292.0,57291.0,0.546641]
[1726018969732,0.00813,57292.0,57291.0,0.29871223]
[1726018970236,0.00813,57292.0,57291.0,0.64780623]
[1726018970488,1.14669762,57292.0,57291.0,0.001]
[1726018970717,1.49578562,57292.0,57291.0,0.001]
[1726018970960,1.87487362,57292.0,57291.0,0.001]
[1726018971416,1.87687362,57292.0,57291.0,0.001]
[1726018971666,0.174623,57266.0,57265.0,0.05220391]
[1726018971880,0.174641,57260.0,57254.0,0.13050977]
[1726018972103,0.523924,57260.0,57253.0,0.174662]
[1726018972319,0.523924,57260.0,57248.0,0.10440782]
[1726018972320,0.873207,57260.0,57248.0,0.349355]
[1726018972803,1.35451494,57260.0,57244.0,0.05220391]
[1726018973021,1.43241494,57260.0,57246.0,0.174683]
[1726018973244,1.44041494,57260.0,57259.0,0.002634]
[1726018973471,1.50121494,57260.0,57259.0,0.002634]
[1726018973700,1.50621494,57260.0,57259.0,0.003634]
[1726018973959,1.18693194,57260.0,57259.0,0.003634]
[1726018974192,1.18193194,57260.0,57259.0,0.002634]
[1726018974396,1.18193194,57260.0,57259.0,0.003634]
[1726018974653,1.18193194,57260.0,57259.0,0.002634]
[1726018974654,1.53321494,57260.0,57259.0,0.002634]
[1726018974885,1.54521494,57260.0,57259.0,0.002634]
[1726018975124,1.53321494,57260.0,57259.0,0.002634]
[1726018975413,1.54021494,57260.0,57259.0,0.002634]
[1726018975634,1.19093194,57260.0,57259.0,0.002634]
[1726018975855,1.18393194,57260.0,57259.0,0.002634]
[1726018976093,0.81864894,57260.0,57259.0,0.002634]
[1726018976318,0.80864894,57260.0,57259.0,0.001634]
[1726018976552,0.45936594,57260.0,57259.0,0.001634]
[1726018976780,0.32566594,57260.0,57259.0,0.002634]
[1726018977261,0.66994894,57260.0,57259.0,0.001634]
[1726018977499,0.67394894,57260.0,57259.0,0.002634]
[1726018977722,0.192641,57260.0,57259.0,0.002634]
[1726018977970,0.235412,57270.0,57265.0,0.174625]
[1726018978204,0.235412,57270.0,57259.0,0.024634]
[1726018978205,0.001,57260.0,57259.0,0.548569]
[1726018978436,0.001,57260.0,57259.0,0.902859]
[1726018978870,0.00248433,57270.0,57266.0,0.174623]
[1726018979100,0.13072887,57269.0,57259.0,0.029634]
[1726018979351,0.00248433,57268.0,57260.0,0.372278]
[1726018979583,0.0779,57273.0,57261.0,0.0751211]
[1726018979792,0.00248433,57272.0,57262.0,0.023]
[1726018980022,0.0779,57273.0,57260.0,0.372278]
[1726018980235,0.174619,57268.0,57260.0,0.023]
[1726018980463,0.174619,57268.0,57263.0,0.174631]
[1726018980709,0.174619,57268.0,57260.0,0.023]
[1726018980710,0.174638,57261.0,57260.0,0.001]
[1726018981168,0.174632,57264.0,57260.0,0.001]
[1726018981375,0.174632,57264.0,57259.0,0.176278]
[1726018981574,0.349266,57263.0,57259.0,0.001634]
[1726018981801,0.174636,57262.0,57259.0,0.001634]
[1726018982019,0.0608,57276.0,57260.0,0.023]
[1726018982255,0.13344189,57272.0,57266.0,0.174622]
[1726018982470,0.0608,57276.0,57262.0,0.0773]
[1726018982711,0.0608,57276.0,57266.0,0.174621]
[1726018982712,0.349201,57274.0,57266.0,0.174621]
[1726018982932,0.174605,57272.0,57265.0,0.349252]
[1726018983226,0.174605,57272.0,57263.0,0.01470281]
[1726018983227,0.349211,57272.0,57266.0,0.197621]
[1726018983469,0.0779,57278.0,57266.0,0.16875803]
[1726018983712,0.174579,57281.0,57275.0,0.349188]
[1726018983950,0.349143,57283.0,57275.0,0.349191]
[1726018984184,0.12905216,57282.0,57276.0,0.26967104]
[1726018984435,0.0629867,57293.0,57283.0,0.349143]
[1726018984674,0.0021867,57293.0,57288.0,0.25240536]
[1726018984904,0.0021867,57293.0,57284.0,0.0653]
[1726018984905,0.174559,57288.0,57284.0,0.0653]
[1726018985145,0.00248433,57291.0,57286.0,0.174561]
[1726018985374,0.17455,57290.0,57286.0,0.174561]
[1726018985596,0.174547,57291.0,57287.0,0.174558]
[1726018985840,0.174554,57289.0,57285.0,0.2334673]
[1726018986085,0.00343133,57292.0,57291.0,0.174547]
[1726018986307,0.00343133,57292.0,57289.0,0.174551]
[1726018986308,0.000947,57292.0,57289.0,0.174551]
[1726018986536,0.000947,57292.0,57290.0,0.197549]
[1726018986769,0.000947,57292.0,57290.0,0.023]
[1726018987023,0.000947,57292.0,57289.0,0.197551]
[1726018987269,0.000947,57292.0,57291.0,0.003]
[1726018987486,0.000947,57292.0,57291.0,0.177547]
[1726018987714,0.000947,57292.0,57291.0,0.003]
[1726018988406,0.000947,57292.0,57291.0,0.0579659]
[1726018988630,0.175491,57292.0,57291.0,0.003]
[1726018988854,0.350035,57292.0,57289.0,0.023]
[1726018989102,0.17703133,57291.0,57290.0,0.003]
[1726018989332,0.00248433,57291.0,57290.0,0.003]
[1726018989551,0.00248433,57291.0,57286.0,0.20443773]
[1726018989552,0.174551,57290.0,57286.0,0.20443773]
[1726018989813,0.174557,57288.0,57287.0,0.05810454]
[1726018990032,0.174553,57290.0,57287.0,0.05810454]
[1726018990273,0.174553,57290.0,57286.0,0.20443773]
[1726018990488,0.000947,57292.0,57291.0,0.523641]
[1726018990768,0.0011975,57292.0,57291.0,0.197547]
[1726018991001,0.174547,57291.0,57290.0,0.004]
[1726018991216,0.0011975,57292.0,57290.0,0.004]
[1726018991432,0.174547,57291.0,57290.0,0.004]
[1726018991863,0.000947,57292.0,57290.0,0.004]
[1726018992072,0.000947,57292.0,57290.0,0.02484317]
[1726018992073,0.175492,57292.0,57290.0,0.02484317]
[1726018992307,0.000947,57292.0,57290.0,0.004]
[1726018992535,0.000947,57292.0,57289.0,0.174553]
[1726018992751,0.000947,57292.0,57286.0,0.03487673]
[1726018992973,0.000947,57292.0,57287.0,0.023]
[1726018992974,0.174551,57290.0,57287.0,0.023]
[1726018993454,0.12760463,57289.0,57276.0,0.449182]
[1726018993698,0.07938433,57288.0,57281.0,0.174577]
[1726018993904,0.07938433,57288.0,57279.0,0.0178934]
[1726018993905,0.42850133,57288.0,57279.0,0.0178934]
[1726018994138,0.174577,57281.0,57280.0,0.07211148]
[1726018994357,0.00248433,57283.0,57279.0,0.0178934]
[1726018994607,0.426017,57288.0,57277.0,0.25240536]
[1726018994608,0.174584,57279.0,57277.0,0.25240536]
[1726018994820,0.523752,57279.0,57272.0,0.25240536]
[1726018995026,0.0002505,57281.0,57280.0,0.523743]
[1726018995242,0.0002505,57281.0,57280.0,0.60152124]
[1726018995456,0.0002505,57281.0,57280.0,0.67762124]
[1726018995642,0.0002505,57281.0,57280.0,1.02678324]
[1726018996130,0.0002505,57281.0,57280.0,1.04978324]
[1726018996609,0.0002505,57281.0,57280.0,1.05678324]
[1726018997053,0.0002505,57281.0,57280.0,0.97368324]
[1726018997286,0.0002505,57281.0,57280.0,0.98268324]
[1726018997775,0.0012505,57281.0,57280.0,0.98268324]
[1726018998010,0.0002505,57281.0,57280.0,0.98268324]
[1726018998515,0.0012505,57281.0,57280.0,0.98268324]
[1726018998765,0.0012505,57281.0,57280.0,0.97368324]
[1726018999003,0.0012505,57281.0,57280.0,0.98768324]
[1726019000435,0.0012505,57281.0,57280.0,0.28935924]
[1726019000649,0.0012505,57281.0,57280.0,0.63852124]
[1726019000868,0.0012505,57281.0,57280.0,0.560743]
[1726019001095,0.0012505,57281.0,57280.0,1.259067]
[1726019001743,0.0012505,57281.0,57280.0,1.59560718]
[1726019002204,0.0012505,57281.0,57280.0,1.419667]
[1726019002423,0.0012505,57281.0,57280.0,1.59464764]
[1726019003089,0.0012505,57281.0,57280.0,1.58064764]
[1726019003308,0.0012505,57281.0,57280.0,0.46356164]
[1726019003564,0.0012505,57281.0,57280.0,0.28898064]
[1726019003816,0.0002505,57281.0,57280.0,0.014]
[1726019004047,0.5249825,57281.0,57280.0,0.026]
[1726019004283,1.00196108,57281.0,57280.0,0.014]
[1726019004511,1.35111608,57281.0,57280.0,0.014]
[1726019004744,1.35111608,57281.0,57280.0,0.012]
[1726019004745,1.00296108,57281.0,57280.0,0.012]
[1726019004994,0.174584,57279.0,57278.0,0.001634]
[1726019005217,0.349162,57280.0,57278.0,0.001634]
[1726019005447,0.174584,57279.0,57278.0,0.001634]
[1726019005943,0.0012505,57281.0,57278.0,0.001634]
[1726019006218,0.174584,57279.0,57278.0,0.001634]
[1726019006667,0.174584,57279.0,57278.0,0.010634]
[1726019006889,1.00204837,57279.0,57278.0,0.010634]
[1726019007377,1.35121637,57279.0,57278.0,0.010634]
[1726019007616,1.35221637,57279.0,57278.0,0.018634]
[1726019008509,1.35121637,57279.0,57278.0,0.001634]
[1726019008797,1.35421637,57279.0,57278.0,0.003634]
[1726019009297,1.73338437,57279.0,57278.0,0.001634]
[1726019009524,1.49261637,57279.0,57278.0,0.001634]
[1726019009746,1.14544837,57279.0,57278.0,0.001634]
[1726019009955,1.14244837,57279.0,57278.0,0.001634]
[1726019010239,1.14044837,57279.0,57278.0,0.001634]
[1726019010473,1.14144837,57279.0,57278.0,0.001634]
[1726019010685,0.65388037,57279.0,57278.0,0.001634]
[1726019010922,1.00904837,57279.0,57278.0,0.002634]
[1726019011148,1.00304837,57279.0,57278.0,0.001634]
[1726019011581,0.65488037,57279.0,57278.0,0.001634]
[1726019011809,0.65388037,57279.0,57278.0,0.001634]
[1726019012036,0.002,57279.0,57278.0,0.183221]
[1726019012273,0.002,57279.0,57278.0,0.94813164]
[1726019012745,0.002,57279.0,57278.0,0.94713164]
[1726019012951,0.002,57279.0,57278.0,0.95413164]
[1726019013164,0.0002505,57281.0,57280.0,0.523743]
[1726019013377,0.0002505,57281.0,57280.0,0.79914836]
[1726019013632,0.0002505,57281.0,57280.0,0.39775726]
[1726019013913,0.174584,57279.0,57278.0,0.001634]
[1726019014089,0.175584,57279.0,57278.0,0.012634]
[1726019014541,0.523752,57279.0,57278.0,0.001634]
[1726019014982,0.3504055,57281.0,57278.0,0.015634]
[1726019014983,0.0012505,57281.0,57278.0,0.015634]
[1726019015192,0.0012505,57281.0,57279.0,0.0420226]
[1726019015409,0.0012505,57281.0,57279.0,0.023]
[1726019015630,0.0012505,57281.0,57279.0,0.197583]
[1726019015858,0.0012505,57281.0,57279.0,0.023]
[1726019016080,0.1758295,57281.0,57279.0,0.023]
[1726019016308,0.0012505,57281.0,57279.0,0.023]
[1726019016545,0.1758295,57281.0,57279.0,0.035]
[1726019016755,0.0012505,57281.0,57279.0,0.209583]
[1726019016976,0.0012505,57281.0,57280.0,0.174581]
[1726019016977,0.0002505,57281.0,57280.0,0.174581]
[1726019017206,0.0002505,57281.0,57280.0,0.197581]
[1726019017207,0.0012505,57281.0,57280.0,0.197581]
[1726019017429,0.0012505,57281.0,57280.0,0.895905]
[1726019017653,0.0012505,57281.0,57280.0,0.35546632]
[1726019018102,0.0002505,57281.0,57280.0,0.35546632]
[1726019018312,0.0012505,57281.0,57280.0,0.37846632]
[1726019018528,0.0012505,57281.0,57280.0,0.220581]
[1726019019015,0.0012505,57281.0,57280.0,0.023]
[1726019019240,1.00544541,57281.0,57280.0,0.023]
[1726019019461,1.00296108,57281.0,57280.0,0.023]
[1726019020546,1.00196108,57281.0,57280.0,0.012]
[1726019020973,0.87292,57279.0,57278.0,0.001634]
[1726019021191,1.00204837,57279.0,57278.0,0.001634]
[1726019021477,1.35121637,57279.0,57278.0,0.001634]
[1726019022344,1.73038437,57279.0,57278.0,0.002634]
[1726019022563,1.81068437,57279.0,57278.0,0.002634]
[1726019022780,1.46151637,57279.0,57278.0,0.002634]
[1726019023016,1.43151637,57279.0,57278.0,0.002634]
[1726019023278,1.46151637,57279.0,57278.0,0.002634]
[1726019023502,1.45851637,57279.0,57278.0,0.001634]
[1726019023730,1.46851637,57279.0,57278.0,0.002634]
[1726019023974,1.81768437,57279.0,57278.0,0.001634]
[1726019024417,1.83068437,57279.0,57278.0,0.002634]
[1726019024637,1.80868437,57279.0,57278.0,0.001634]
[1726019024877,1.80768437,57279.0,57278.0,0.001634]
[1726019025094,1.80768437,57279.0,57278.0,0.002634]
[1726019025561,2.62985773,57279.0,57278.0,0.002634]
[1726019025789,2.28068973,57279.0,57278.0,0.002634]
[1726019026021,1.72938512,57279.0,57278.0,0.002634]
[1726019026244,1.67911637,57279.0,57278.0,0.002634]
[1726019026466,1.61911637,57279.0,57278.0,0.002634]
[1726019026663,1.68011637,57279.0,57278.0,0.002634]
[1726019026902,1.61911637,57279.0,57278.0,0.002634]
[1726019027113,1.63211637,57279.0,57278.0,0.003634]
[1726019027331,1.50211637,57279.0,57278.0,0.002634]
[1726019027554,1.48911637,57279.0,57278.0,0.001634]